bitfinex-derivatives/quotes_BTCF0:USTF0_20250828
["timestamp","ask_amount","ask_price","bid_price","bid_amount"]
[1756367038333,1.47985387,113230.0,113220.0,0.39853]
[1756367038740,1.47985387,113230.0,113220.0,0.4303]
[1756367038944,1.06253025,113230.0,113220.0,0.45421]
[1756367039140,1.47985387,113230.0,113220.0,0.45421]
[1756367040538,1.47985387,113230.0,113220.0,0.3608]
[1756367042634,1.47985387,113230.0,113220.0,0.37743]
[1756367042834,1.47985387,113230.0,113220.0,0.47325]
[1756367044441,1.47985387,113230.0,113220.0,0.97889092]
[1756367044940,1.52697387,113230.0,113220.0,0.97889092]
[1756367045744,0.69102387,113230.0,113220.0,0.97889092]
[1756367046042,1.08398025,113230.0,113220.0,0.97889092]
[1756367046541,1.52444387,113230.0,113220.0,0.97889092]
[1756367047244,0.72232387,113230.0,113220.0,0.97889092]
[1756367047439,1.52440387,113230.0,113220.0,0.97889092]
[1756367047940,1.10708025,113230.0,113220.0,0.97889092]
[1756367048144,0.30500025,113230.0,113220.0,0.97889092]
[1756367048340,1.10708025,113230.0,113220.0,0.97889092]
[1756367050742,1.10708025,113230.0,113220.0,0.5615673]
[1756367050942,1.10708025,113230.0,113220.0,0.97889092]
[1756367051143,1.52440387,113230.0,113220.0,0.97889092]
[1756367051450,1.05195025,113230.0,113220.0,0.97889092]
[1756367051749,1.08394025,113230.0,113220.0,0.97889092]
[1756367052346,0.28186025,113230.0,113220.0,0.97889092]
[1756367052548,1.08390025,113230.0,113220.0,0.97889092]
[1756367052746,1.10704025,113230.0,113220.0,0.97889092]
[1756367054345,0.30500025,113230.0,113220.0,0.97889092]
[1756367054546,1.10704025,113230.0,113220.0,0.97889092]
[1756367055548,0.27301025,113230.0,113220.0,1.39621454]
[1756367055747,1.10704025,113230.0,113220.0,0.97889092]
[1756367057547,0.30500025,113230.0,113220.0,0.97889092]
[1756367058148,0.30500025,113230.0,113220.0,1.78089092]
[1756367058342,0.72232387,113230.0,113220.0,1.27525]
[1756367058543,0.72232387,113230.0,113220.0,0.83489362]
[1756367058744,0.72232387,113230.0,113220.0,0.92321092]
[1756367059446,0.72232387,113230.0,113220.0,0.97836092]
[1756367059646,1.52432387,113230.0,113220.0,0.97836092]
[1756367060347,1.52432387,113230.0,113220.0,0.4657473]
[1756367061448,1.52432387,113230.0,113220.0,0.37743]
[1756367062247,1.52432387,113230.0,113220.0,0.4657473]
[1756367063349,1.52432387,113230.0,113220.0,0.37743]
[1756367063749,1.52432387,113230.0,113220.0,0.3608]
[1756367063942,1.52432387,113230.0,113220.0,0.37618]
[1756367065249,1.77432387,113230.0,113220.0,0.3608]
[1756367066054,1.77432387,113230.0,113220.0,0.37618]
[1756367066650,1.77432387,113230.0,113220.0,0.40795]
[1756367067248,1.77432387,113230.0,113220.0,0.37618]
[1756367070950,1.35700025,113230.0,113220.0,0.37618]
[1756367071151,1.77432387,113230.0,113220.0,0.3608]
[1756367071952,1.77432387,113230.0,113220.0,0.37618]
[1756367074654,1.77432387,113230.0,113220.0,0.3608]
[1756367075260,1.77432387,113230.0,113220.0,0.37727]
[1756367076757,1.77432387,113230.0,113220.0,0.43313]
[1756367078157,1.77432387,113230.0,113220.0,0.40136]
[1756367078459,1.77432387,113230.0,113220.0,0.37727]
[1756367078963,1.77432387,113230.0,113220.0,0.3608]
[1756367080561,1.77432387,113230.0,113220.0,0.37727]
[1756367082161,1.77432387,113230.0,113220.0,0.47264]
[1756367082862,1.77432387,113230.0,113220.0,0.50106]
[1756367084463,1.77432387,113230.0,113220.0,0.47264]
[1756367085562,1.80107297,113230.0,113220.0,0.47264]
[1756367085964,1.77432387,113230.0,113220.0,0.47264]
[1756367086365,0.97232387,113230.0,113220.0,0.47264]
[1756367086561,1.77420387,113230.0,113220.0,0.47264]
[1756367088564,1.77420387,113230.0,113220.0,0.44855]
[1756367088767,1.77420387,113230.0,113220.0,0.41678]
[1756367089666,1.77420387,113230.0,113220.0,0.44855]
[1756367090467,1.77420387,113230.0,113220.0,0.3608]
[1756367090672,0.14485,113220.0,113210.0,0.79459362]
[1756367090866,0.89087724,113220.0,113200.0,0.44508]
[1756367091066,1.36401362,113210.0,113200.0,0.50106]
[1756367091566,1.36401362,113210.0,113200.0,1.00671642]
[1756367092071,0.94669,113210.0,113200.0,1.00671642]
[1756367092265,1.36401362,113210.0,113200.0,1.00671642]
[1756367093173,1.36401362,113210.0,113200.0,1.00771642]
[1756367094168,0.94669,113210.0,113200.0,1.00771642]
[1756367094373,0.06678,113210.0,113200.0,1.00771642]
[1756367094575,0.90352,113210.0,113200.0,1.00771642]
[1756367094770,0.12628,113210.0,113200.0,1.25771642]
[1756367094978,0.14485,113220.0,113210.0,0.2285851]
[1756367095274,0.87033,113220.0,113210.0,1.00670872]
[1756367097478,0.87033,113220.0,113210.0,0.50106]
[1756367097479,1.28765362,113220.0,113210.0,0.50106]
[1756367097674,1.28765362,113220.0,113210.0,0.91838362]
[1756367097976,1.28865362,113220.0,113210.0,0.91838362]
[1756367100378,1.28865362,113220.0,113210.0,0.37727]
[1756367100567,1.28865362,113220.0,113210.0,0.3608]
[1756367101073,1.28865362,113220.0,113210.0,0.37727]
[1756367101274,1.28865362,113220.0,113210.0,0.47264]
[1756367101678,1.36501362,113220.0,113210.0,0.91838362]
[1756367106188,0.94769,113220.0,113210.0,0.91838362]
[1756367106487,1.36501362,113220.0,113210.0,0.91838362]
[1756367107283,1.36501362,113220.0,113210.0,0.50106]
[1756367107484,1.36501362,113220.0,113210.0,0.91838362]
[1756367107686,1.36501362,113220.0,113210.0,0.50106]
[1756367107886,0.94769,113220.0,113210.0,1.00670872]
[1756367109189,0.94677,113220.0,113210.0,1.00670872]
[1756367109591,0.94677,113220.0,113210.0,0.5893851]
[1756367109791,0.94677,113220.0,113210.0,1.00670872]
[1756367116000,0.14497,113220.0,113210.0,1.80846872]
[1756367122002,0.14497,113220.0,113210.0,0.5893851]
[1756367122199,0.14497,113220.0,113210.0,0.91838362]
[1756367122504,0.14497,113220.0,113210.0,1.00670872]
[1756367135807,0.06778,113220.0,113210.0,1.00670872]
[1756367136008,0.02248,113220.0,113210.0,1.00670872]
[1756367136208,0.001,113220.0,113210.0,1.00670872]
[1756367136408,0.001,113220.0,113210.0,0.5893851]
[1756367136712,0.001,113220.0,113210.0,1.00670872]
[1756367138611,0.001,113220.0,113210.0,1.42403234]
[1756367139007,0.001,113220.0,113210.0,1.00670872]
[1756367139207,0.001,113220.0,113210.0,1.42403234]
[1756367139506,0.001,113220.0,113210.0,1.00670872]
[1756367144512,0.001,113220.0,113210.0,1.67403234]
[1756367147616,0.001,113220.0,113210.0,1.68294355]
[1756367149310,0.07221375,113230.0,113210.0,1.68698865]
[1756367149511,0.59879596,113240.0,113230.0,0.05672]
[1756367149715,0.26719085,113240.0,113230.0,0.91859362]
[1756367150016,0.33619136,113240.0,113230.0,0.91859362]
[1756367151120,0.33619136,113240.0,113230.0,1.00690312]
[1756367151321,0.33919136,113240.0,113230.0,1.00690312]
[1756367151518,0.34219136,113240.0,113230.0,1.00690312]
[1756367152715,0.75951498,113240.0,113230.0,1.00690312]
[1756367154723,0.72681498,113240.0,113230.0,1.00690312]
[1756367154922,0.75951498,113240.0,113230.0,1.00690312]
[1756367155123,0.75951225,113240.0,113230.0,1.00690312]
[1756367156023,0.34218863,113240.0,113230.0,1.00690312]
[1756367156820,0.75951225,113240.0,113230.0,0.5895795]
[1756367157021,0.75951225,113240.0,113230.0,1.00690312]
[1756367160320,0.73173647,113240.0,113230.0,1.00690312]
[1756367160523,0.73173647,113240.0,113230.0,0.91859362]
[1756367161023,0.73173647,113240.0,113230.0,1.00690312]
[1756367163627,0.31441285,113240.0,113230.0,1.00690312]
[1756367163827,0.73173647,113240.0,113230.0,1.00690312]
[1756367164423,0.31441285,113240.0,113230.0,1.00690312]
[1756367164623,0.73173647,113240.0,113230.0,1.00690312]
[1756367170030,0.31441285,113240.0,113230.0,1.00690312]
[1756367170329,0.73173647,113240.0,113230.0,1.00690312]
[1756367170526,0.31441285,113240.0,113230.0,1.00690312]
[1756367170728,0.73173647,113240.0,113230.0,1.00690312]
[1756367170932,0.31441285,113240.0,113230.0,1.00690312]
[1756367172431,0.34243087,113240.0,113230.0,1.00690312]
[1756367174136,0.34243087,113240.0,113230.0,0.64610312]
[1756367174333,0.34243087,113240.0,113230.0,1.00690312]
[1756367174833,0.31441285,113240.0,113230.0,1.00690312]
[1756367175033,0.34243025,113240.0,113230.0,1.00690312]
[1756367175534,0.31441285,113240.0,113230.0,1.00690312]
[1756367180533,0.73173647,113240.0,113230.0,1.00690312]
[1756367183643,0.76009384,113240.0,113230.0,1.00690312]
[1756367183839,0.31441285,113240.0,113230.0,1.00690312]
[1756367184041,0.73173647,113240.0,113230.0,1.00690312]
[1756367184438,0.76009482,113240.0,113230.0,1.00690312]
[1756367185646,0.3427712,113240.0,113230.0,1.00690312]
[1756367185845,0.76009482,113240.0,113230.0,1.00690312]
[1756367186139,0.3427712,113240.0,113230.0,1.00690312]
[1756367186341,0.76009482,113240.0,113230.0,1.00690312]
[1756367187739,0.76010242,113240.0,113230.0,1.00690312]
[1756367188046,0.73173647,113240.0,113230.0,1.00690312]
[1756367189140,0.73173647,113240.0,113230.0,0.50127]
[1756367189341,0.73173647,113240.0,113230.0,0.4695]
[1756367189642,0.73173647,113240.0,113230.0,0.91859362]
[1756367190847,0.76011044,113240.0,113230.0,0.91859362]
[1756367192239,0.34278682,113240.0,113230.0,0.91859362]
[1756367192442,0.76011044,113240.0,113230.0,0.91859362]
[1756367195142,0.76011009,113240.0,113230.0,0.91859362]
[1756367195646,0.34278647,113240.0,113230.0,0.91859362]
[1756367195847,0.76011009,113240.0,113230.0,0.91859362]
[1756367198350,0.34278647,113240.0,113230.0,0.91859362]
[1756367198550,1.56139009,113240.0,113230.0,0.91859362]
[1756367201952,1.56139009,113240.0,113230.0,0.3608]
[1756367202546,1.56139009,113240.0,113230.0,0.37683]
[1756367204152,1.56139009,113240.0,113230.0,0.79415362]
[1756367204452,1.56139009,113240.0,113230.0,0.89099362]
[1756367204755,1.56139009,113240.0,113230.0,0.47367]
[1756367205948,1.56139009,113240.0,113230.0,0.89099362]
[1756367206154,1.56139009,113240.0,113230.0,0.91877362]
[1756367207344,1.14406647,113240.0,113230.0,0.91877362]
[1756367207549,1.56139009,113240.0,113230.0,0.91877362]
[1756367208754,1.14406647,113240.0,113230.0,0.91877362]
[1756367208949,1.56139009,113240.0,113230.0,0.91877362]
[1756367209354,1.14406647,113240.0,113230.0,0.91877362]
[1756367209554,1.56139009,113240.0,113230.0,0.91877362]
[1756367211056,1.56139009,113240.0,113230.0,0.50145]
[1756367211354,1.56139009,113240.0,113230.0,0.89099362]
[1756367211956,1.56139009,113240.0,113230.0,0.47367]
[1756367213453,1.56139009,113240.0,113230.0,0.89099362]
[1756367213655,1.56139009,113240.0,113230.0,0.91877362]
[1756367214755,1.56139009,113240.0,113230.0,0.89099362]
[1756367216352,1.56139009,113240.0,113230.0,0.85922362]
[1756367216752,1.56139009,113240.0,113230.0,0.89099362]
[1756367217758,1.56139009,113240.0,113230.0,0.91877362]
[1756367218057,1.56139009,113240.0,113230.0,0.50145]
[1756367220259,2.17219009,113240.0,113220.0,0.41617]
[1756367220466,0.55946362,113230.0,113220.0,0.50145]
[1756367221660,0.56046362,113230.0,113220.0,0.50145]
[1756367222252,0.56046362,113230.0,113220.0,0.91877362]
[1756367222956,0.56146362,113230.0,113220.0,0.91877362]
[1756367224855,0.56146362,113230.0,113220.0,0.37683]
[1756367225062,0.56146362,113230.0,113220.0,0.44922]
[1756367225262,0.56146362,113230.0,113220.0,0.47293]
[1756367227052,0.14414,113230.0,113220.0,0.50038]
[1756367227252,0.56146362,113230.0,113220.0,0.50038]
[1756367227562,0.14414,113230.0,113220.0,0.91770362]
[1756367228061,0.56146362,113230.0,113220.0,0.91770362]
[1756367229163,0.56146362,113230.0,113220.0,1.00602092]
[1756367229559,0.56146362,113230.0,113220.0,0.91770362]
[1756367229761,1.36306362,113230.0,113220.0,0.91770362]
[1756367230159,0.56146362,113230.0,113220.0,0.91770362]
[1756367230464,1.36302362,113230.0,113220.0,0.91770362]
[1756367230861,0.10955,113230.0,113220.0,1.00602102]
[1756367231162,0.9464,113230.0,113220.0,1.00602102]
[1756367231464,0.94693,113230.0,113220.0,1.00602102]
[1756367233970,0.94693,113230.0,113220.0,0.5886974]
[1756367234170,0.94693,113230.0,113220.0,1.00602102]
[1756367234471,1.36425362,113230.0,113220.0,1.00602102]
[1756367234872,1.36425362,113230.0,113220.0,0.91770362]
[1756367236674,0.94693,113230.0,113220.0,0.91770362]
[1756367236877,1.36425362,113230.0,113220.0,0.91770362]
[1756367237576,0.94693,113230.0,113220.0,1.00602102]
[1756367237876,1.36425362,113230.0,113220.0,1.00602102]
[1756367238073,1.36425362,113230.0,113220.0,0.91770362]
[1756367241579,0.94693,113230.0,113220.0,0.91770362]
[1756367241778,1.36425362,113230.0,113220.0,0.50038]
[1756367241977,1.36425362,113230.0,113220.0,0.91770362]
[1756367244779,1.36425362,113230.0,113220.0,0.50038]
[1756367244982,1.36425362,113230.0,113220.0,0.91770362]
[1756367246278,0.56225362,113230.0,113220.0,0.91770362]
[1756367246483,1.36409362,113230.0,113220.0,0.91770362]
[1756367246682,1.36409362,113230.0,113220.0,1.00602102]
[1756367246882,1.36409362,113230.0,113220.0,0.91770362]
[1756367247074,0.94677,113230.0,113220.0,0.91770362]
[1756367247280,1.36409362,113230.0,113220.0,0.91770362]
[1756367249886,0.84125,113230.0,113220.0,1.00602092]
[1756367250391,0.90411,113230.0,113220.0,1.00602092]
[1756367250580,0.92774,113230.0,113220.0,1.00602092]
[1756367251990,0.94732,113230.0,113220.0,0.91770362]
[1756367252188,1.36464362,113230.0,113220.0,0.91770362]
[1756367253693,1.36464362,113230.0,113220.0,0.50038]
[1756367253894,1.36464362,113230.0,113220.0,0.91770362]
[1756367254994,0.94732,113230.0,113220.0,0.91770362]
[1756367256397,0.97586943,113230.0,113220.0,0.91770362]
[1756367256698,1.39319305,113230.0,113220.0,0.91770362]
[1756367261696,0.97586943,113230.0,113220.0,1.00602092]
[1756367266103,0.97586943,113230.0,113220.0,0.5886973]
[1756367266303,0.97586943,113230.0,113220.0,0.50038]
[1756367266603,1.39319305,113230.0,113220.0,0.83477362]
[1756367267300,1.39319305,113230.0,113220.0,0.86654362]
[1756367267502,1.39319305,113230.0,113220.0,0.88955362]
[1756367267697,1.39319305,113230.0,113220.0,0.97787102]
[1756367267904,1.39319305,113230.0,113220.0,1.00680102]
[1756367268106,0.97586943,113230.0,113220.0,1.00680102]
[1756367270508,0.59125305,113230.0,113220.0,0.91848362]
[1756367270703,1.39281305,113230.0,113220.0,0.91848362]
[1756367271205,1.39281305,113230.0,113220.0,0.88955362]
[1756367271808,1.39281305,113230.0,113220.0,0.91848362]
[1756367272409,0.59125305,113230.0,113220.0,0.91848362]
[1756367272708,0.97544943,113230.0,113220.0,1.00680092]
[1756367274711,0.97544943,113230.0,113220.0,0.91848362]
[1756367275412,1.39277305,113230.0,113220.0,0.91848362]
[1756367275604,1.39277305,113230.0,113220.0,0.88955362]
[1756367276008,1.39277305,113230.0,113220.0,0.86654362]
[1756367276307,1.39277305,113230.0,113220.0,0.91848362]
[1756367277614,1.39277305,113230.0,113220.0,0.88955362]
[1756367279317,1.39277305,113230.0,113220.0,0.91848362]
[1756367281723,0.97544943,113230.0,113220.0,0.91848362]
[1756367283424,1.39277305,113230.0,113220.0,0.91848362]
[1756367286223,1.39277305,113230.0,113220.0,0.41745]
[1756367286430,1.39277305,113230.0,113220.0,0.39582]
[1756367286625,1.39277305,113230.0,113220.0,0.37683]
[1756367290233,0.97544943,113230.0,113220.0,0.37683]
[1756367290434,1.39277305,113230.0,113220.0,0.37683]
[1756367291331,1.39277305,113230.0,113220.0,0.47165]
[1756367292833,1.35372305,113230.0,113220.0,0.4325]
[1756367293033,1.35372305,113230.0,113220.0,0.47098]
[1756367293034,1.39275305,113230.0,113220.0,0.47098]
[1756367294133,1.39275305,113230.0,113220.0,0.43925]
[1756367294635,1.39275305,113230.0,113220.0,0.47098]
[1756367296227,1.39275305,113230.0,113220.0,0.3608]
[1756367296535,0.14068,113220.0,113210.0,0.37616]
[1756367296727,0.58655305,113220.0,113210.0,0.88830362]
[1756367296930,0.58655305,113220.0,113210.0,0.91531362]
[1756367297127,0.58655305,113220.0,113210.0,0.49799]
[1756367299036,0.58655305,113220.0,113210.0,0.49999]
[1756367299836,0.16922943,113220.0,113210.0,0.49999]
[1756367300035,0.58655305,113220.0,113210.0,0.91731362]
[1756367301136,0.58655305,113220.0,113210.0,0.49999]
[1756367301337,0.58655305,113220.0,113210.0,0.91731362]
[1756367302241,0.16922943,113220.0,113210.0,0.91731362]
[1756367302539,0.58655305,113220.0,113210.0,0.49999]
[1756367303734,0.58655305,113220.0,113210.0,1.00563872]
[1756367306641,0.58655305,113220.0,113210.0,0.91731362]
[1756367310348,0.58655305,113220.0,113210.0,0.49999]
[1756367310550,0.58655305,113220.0,113210.0,0.91731362]
[1756367311047,0.58655305,113220.0,113210.0,0.49999]
[1756367311550,1.35944362,113220.0,113210.0,0.49999]
[1756367313253,1.38840204,113220.0,113210.0,0.49999]
[1756367313552,1.38840116,113220.0,113210.0,0.49999]
[1756367313755,0.97107754,113220.0,113210.0,0.49999]
[1756367313949,1.38840116,113220.0,113210.0,0.5883151]
[1756367314151,1.38840116,113220.0,113210.0,1.00563872]
[1756367316555,1.38840116,113220.0,113210.0,0.91731362]
[1756367320859,1.38840116,113220.0,113210.0,0.49999]
[1756367321055,1.38840116,113220.0,113210.0,0.91731362]
[1756367322059,1.38840116,113220.0,113210.0,0.49999]
[1756367322260,1.38840116,113220.0,113210.0,0.91731362]
[1756367323163,0.58696116,113220.0,113210.0,0.91731362]
[1756367323351,1.38836116,113220.0,113210.0,0.91731362]
[1756367324561,1.38836116,113220.0,113210.0,0.49999]
[1756367324760,1.38836116,113220.0,113210.0,0.91731362]
[1756367330759,1.38836116,113220.0,113210.0,0.5022]
[1756367330963,2.41648478,113220.0,113210.0,0.002]
[1756367332161,2.33145478,113220.0,113200.0,0.3608]
[1756367332366,0.56005362,113210.0,113200.0,0.37644]
[1756367332566,0.58901116,113210.0,113200.0,0.37644]
[1756367332766,0.58901116,113210.0,113200.0,0.40821]
[1756367332966,0.58901116,113210.0,113200.0,0.4328]
[1756367333368,0.58901116,113210.0,113200.0,0.47224]
[1756367333567,0.17168754,113210.0,113200.0,0.50342]
[1756367333867,0.58901116,113210.0,113200.0,0.50342]
[1756367334367,0.58901116,113210.0,113200.0,0.47424]
[1756367334560,0.56005362,113210.0,113200.0,0.47424]
[1756367335267,0.56005362,113210.0,113200.0,0.50342]
[1756367335667,0.56005362,113210.0,113200.0,0.92074362]
[1756367335869,0.58931827,113210.0,113200.0,0.92074362]
[1756367336368,0.56005362,113210.0,113200.0,0.92074362]
[1756367337370,0.14273,113210.0,113200.0,0.92074362]
[1756367337668,0.56005362,113210.0,113200.0,0.92074362]
[1756367340367,1.36145362,113210.0,113200.0,0.50342]
[1756367340670,1.36145362,113210.0,113200.0,0.92074362]
[1756367341873,1.36145362,113210.0,113200.0,0.50342]
[1756367342074,1.36145362,113210.0,113200.0,0.47424]
[1756367342670,1.36145362,113210.0,113200.0,0.50342]
[1756367353683,0.94413,113210.0,113200.0,0.50342]
[1756367353983,1.36145362,113210.0,113200.0,0.50342]
[1756367354784,0.94413,113210.0,113200.0,0.50342]
[1756367354982,1.36145362,113210.0,113200.0,0.50342]
[1756367355583,1.36145362,113210.0,113200.0,0.92074362]
[1756367355776,0.94413,113210.0,113200.0,0.92074362]
[1756367355971,1.36145362,113210.0,113200.0,0.92074362]
[1756367356175,1.36145362,113210.0,113200.0,0.47424]
[1756367356373,1.36145362,113210.0,113200.0,0.11344]
[1756367356577,1.39066253,113210.0,113200.0,0.11344]
[1756367358783,1.39066253,113210.0,113200.0,0.03595]
[1756367358983,1.39066253,113210.0,113200.0,0.01764]
[1756367359676,1.75146253,113210.0,113200.0,0.002]
[1756367359979,2.00146253,113210.0,113200.0,0.002]
[1756367361381,2.00346253,113210.0,113200.0,0.002]
[1756367362481,1.91751253,113210.0,113180.0,0.44385]
[1756367362686,0.55763362,113190.0,113180.0,0.49993]
[1756367362886,1.35899362,113190.0,113180.0,0.49993]
[1756367363080,1.35899362,113190.0,113180.0,0.46816]
[1756367363286,1.77631724,113190.0,113180.0,0.07906]
[1756367363579,1.77631724,113190.0,113180.0,0.05779]
[1756367363786,1.35899362,113190.0,113180.0,0.01633]
[1756367363984,1.35899362,113190.0,113180.0,0.01833]
[1756367364286,1.35899362,113190.0,113180.0,0.11283]
[1756367364882,0.95049326,113190.0,113180.0,0.11283]
[1756367365084,1.36781688,113190.0,113180.0,0.11283]
[1756367365788,1.36781688,113190.0,113180.0,0.14113]
[1756367366488,0.11650326,113190.0,113180.0,1.25760222]
[1756367366790,0.6032,113200.0,113180.0,1.17455222]
[1756367367082,0.66031,113200.0,113190.0,0.91725362]
[1756367367477,0.90908,113200.0,113190.0,1.00559442]
[1756367367683,0.94171,113200.0,113190.0,1.25559442]
[1756367368989,0.88649,113200.0,113190.0,1.25559442]
[1756367369190,0.91912,113200.0,113190.0,1.25559442]
[1756367369389,0.94171,113200.0,113190.0,1.25559442]
[1756367370091,0.94271,113200.0,113190.0,0.8382708]
[1756367370293,0.94271,113200.0,113190.0,1.25559442]
[1756367370992,0.14131,113200.0,113190.0,1.25559442]
[1756367371187,0.94271,113200.0,113190.0,1.25559442]
[1756367371896,0.94267,113200.0,113190.0,1.25559442]
[1756367372188,0.92008,113200.0,113190.0,1.25559442]
[1756367372693,0.14131,113200.0,113190.0,1.25559442]
[1756367372894,0.94267,113200.0,113190.0,1.25559442]
[1756367374893,0.14131,113200.0,113190.0,1.25559442]
[1756367375093,0.94267,113200.0,113190.0,1.25559442]
[1756367379993,0.10868,113200.0,113190.0,1.67291804]
[1756367380198,0.001,113200.0,113190.0,2.47423804]
[1756367382196,0.001,113200.0,113190.0,2.48321562]
[1756367382598,0.02911,113210.0,113200.0,0.229073]
[1756367382896,0.27602518,113220.0,113210.0,0.24905948]
[1756367383096,0.17884882,113220.0,113210.0,1.0271831]
[1756367385402,0.17884882,113220.0,113210.0,1.8284631]
[1756367385804,0.17984882,113220.0,113210.0,1.8284631]
[1756367391307,0.17984882,113220.0,113210.0,1.0271831]
[1756367397612,0.17984882,113220.0,113210.0,0.60985948]
[1756367397806,0.17984882,113220.0,113210.0,0.52153428]
[1756367398007,0.17984882,113220.0,113210.0,1.0271831]
[1756367398209,0.15656882,113220.0,113210.0,1.0271831]
[1756367398507,0.10561882,113220.0,113210.0,1.0271831]
[1756367400917,0.07651518,113220.0,113210.0,1.0271831]
[1756367401115,0.00996518,113220.0,113210.0,1.0271831]
[1756367407818,0.00996518,113220.0,113210.0,0.60985948]
[1756367408117,0.00996518,113220.0,113210.0,1.0271831]
[1756367410116,0.001,113220.0,113210.0,1.0271831]
[1756367410318,0.001,113220.0,113210.0,1.69450672]
[1756367410516,0.87012051,113240.0,113230.0,0.14034]
[1756367410719,0.8991635,113240.0,113230.0,1.27926362]
[1756367411718,0.90820104,113240.0,113230.0,1.27926362]
[1756367412218,0.90820104,113240.0,113230.0,1.36757322]
[1756367412821,0.11008104,113240.0,113230.0,1.36757322]
[1756367413317,0.13833104,113240.0,113230.0,1.36757322]
[1756367414221,0.14033104,113240.0,113230.0,1.36757322]
[1756367414921,0.11208104,113240.0,113230.0,1.36757322]
[1756367415925,0.14033104,113240.0,113230.0,1.36757322]
[1756367416119,0.17515104,113240.0,113230.0,1.36757322]
[1756367417623,0.67309466,113240.0,113230.0,0.86194]
[1756367417924,0.67309466,113240.0,113230.0,1.27926362]
[1756367419225,0.25577104,113240.0,113230.0,1.27926362]
[1756367419424,0.67309466,113240.0,113230.0,1.27926362]
[1756367419922,0.25577104,113240.0,113230.0,1.27926362]
[1756367420124,0.67309466,113240.0,113230.0,1.27926362]
[1756367421225,0.92309466,113240.0,113230.0,0.55766362]
[1756367422523,0.50577104,113240.0,113230.0,0.55766362]
[1756367422723,0.92309466,113240.0,113230.0,0.55766362]
[1756367424722,0.50577104,113240.0,113230.0,0.91846362]
[1756367425216,0.50577104,113240.0,113230.0,0.5894496]
[1756367425421,0.50577104,113240.0,113230.0,1.00677322]
[1756367426125,1.30673104,113240.0,113230.0,1.00677322]
[1756367426522,1.72405466,113240.0,113230.0,1.00677322]
[1756367427626,1.72405466,113240.0,113230.0,0.91846362]
[1756367427925,1.72405466,113240.0,113230.0,0.50114]
[1756367428119,1.30673104,113240.0,113230.0,0.91846362]
[1756367428324,1.72405466,113240.0,113230.0,1.00677322]
[1756367429526,1.30673104,113240.0,113230.0,1.00677322]
[1756367429828,1.72405466,113240.0,113230.0,1.00677322]
[1756367432130,0.92309466,113240.0,113230.0,1.00677322]
[1756367432330,1.72409466,113240.0,113230.0,1.00677322]
[1756367432525,1.72409466,113240.0,113230.0,0.91846362]
[1756367433531,1.72409466,113240.0,113230.0,1.00677322]
[1756367434630,1.72409466,113240.0,113230.0,0.91846362]
[1756367435231,1.30677104,113240.0,113230.0,0.91846362]
[1756367435527,1.72409466,113240.0,113230.0,1.00677312]
[1756367435728,1.30677104,113240.0,113230.0,1.00677312]
[1756367435929,0.50577104,113240.0,113230.0,1.00677312]
[1756367436229,1.72405466,113240.0,113230.0,1.00677312]
[1756367438833,1.30673104,113240.0,113230.0,1.00677312]
[1756367440130,0.50577104,113240.0,113230.0,1.00677312]
[1756367440335,1.30673104,113240.0,113230.0,1.00677312]
[1756367440837,1.30697104,113240.0,113230.0,1.02638634]
[1756367441030,1.30745104,113240.0,113230.0,1.02638634]
[1756367441235,1.30745104,113240.0,113230.0,0.60906272]
[1756367441436,1.30745104,113240.0,113230.0,1.02638634]
[1756367445438,1.30753104,113240.0,113230.0,1.02638634]
[1756367445630,1.30741104,113240.0,113230.0,1.02638634]
[1756367446936,1.27836805,113240.0,113230.0,1.02638634]
[1756367447737,1.69569167,113240.0,113230.0,0.93807684]
[1756367448140,1.69569167,113240.0,113230.0,1.02638634]
[1756367448334,1.69569167,113240.0,113230.0,0.60906272]
[1756367448539,1.69569167,113240.0,113230.0,1.02638634]
[1756367450343,1.69569167,113240.0,113230.0,0.93807684]
[1756367450535,1.72474111,113240.0,113230.0,0.07673322]
[1756367450832,0.14427,113230.0,113210.0,0.43354428]
[1756367451041,1.36339362,113220.0,113210.0,0.9076779]
[1756367451238,1.36335362,113220.0,113210.0,0.9384479]
[1756367451435,1.36335362,113220.0,113210.0,0.9089579]
[1756367452840,1.36435362,113220.0,113210.0,0.9089579]
[1756367453042,1.36435362,113220.0,113210.0,0.46086428]
[1756367453350,1.36435362,113220.0,113210.0,0.01999428]
[1756367453554,1.36435362,113220.0,113200.0,0.83215362]
[1756367453746,0.14427,113210.0,113200.0,0.88896362]
[1756367453945,0.14427,113210.0,113200.0,0.91845362]
[1756367454348,0.14427,113210.0,113200.0,1.00678662]
[1756367454550,0.14427,113210.0,113200.0,0.91845362]
[1756367454953,0.14427,113210.0,113200.0,0.92045362]
[1756367455549,0.14427,113210.0,113200.0,0.53016362]
[1756367455851,0.14427,113210.0,113200.0,0.89096362]
[1756367456352,0.56159362,113210.0,113200.0,0.92045362]
[1756367456552,0.56159362,113210.0,113200.0,0.11156]
[1756367456750,0.56159362,113210.0,113200.0,0.08207]
[1756367457253,0.56159362,113210.0,113200.0,0.14233]
[1756367457449,0.14427,113210.0,113200.0,0.55965362]
[1756367457649,0.56159362,113210.0,113200.0,0.55965362]
[1756367458852,0.92239362,113210.0,113200.0,0.0367]
[1756367459151,0.92239362,113210.0,113200.0,0.0183]
[1756367459352,0.50507,113210.0,113200.0,0.0183]
[1756367459651,0.92239362,113210.0,113200.0,0.002]
[1756367460151,1.17239362,113210.0,113200.0,0.002]
[1756367460850,1.17239362,113210.0,113180.0,0.46401128]
[1756367461053,0.56159362,113190.0,113180.0,0.0163]
[1756367461350,0.14427,113180.0,113170.0,0.52270402]
[1756367461555,0.94635,113180.0,113170.0,0.52270402]
[1756367461853,0.94635,113180.0,113170.0,0.49321402]
[1756367462448,0.94635,113180.0,113170.0,0.52270402]
[1756367462449,1.01750027,113180.0,113170.0,0.52270402]
[1756367462854,1.01750027,113180.0,113170.0,0.52370402]
[1756367463654,1.01750027,113180.0,113170.0,0.52570402]
[1756367464453,1.02626238,113180.0,113170.0,0.52570402]
[1756367468054,1.02626238,113180.0,113170.0,0.89693615]
[1756367469752,1.02626238,113180.0,113170.0,0.52570402]
[1756367472063,1.02626238,113180.0,113170.0,0.50597]
[1756367479959,0.22418238,113180.0,113170.0,0.5943264]
[1756367480267,1.02602238,113180.0,113170.0,0.96455853]
[1756367480460,1.02702238,113180.0,113170.0,0.96455853]
[1756367480666,0.99241238,113180.0,113170.0,1.21455853]
[1756367480965,1.02738238,113180.0,113170.0,1.21455853]
[1756367481360,1.02738238,113180.0,113170.0,1.21255853]
[1756367481563,1.02838238,113180.0,113170.0,1.21255853]
[1756367482166,0.22654238,113180.0,113170.0,1.21255853]
[1756367482464,1.02838238,113180.0,113170.0,1.21255853]
[1756367485166,1.02814238,113180.0,113170.0,1.21255853]